[Event "14e Open International de Quenza"]
[Site "Quenza, France"]
[Date "????.??.??"]
[Round "3.7"]
[White "Terrieux, Kevin"]
[Black "Utrera, Ludovic"]
[Result "1-0"]
[TimeControl "5min+3s"]
[WhiteElo "2394"]
[BlackElo "2118"]

1. e4 {[%clk 00:05:03]} {[%emt 00:00:02]} c5 {[%clk 00:05:03]} 2. Nf3 {[%clk
00:05:03]} {[%emt 00:00:02]} d6 {[%clk 00:05:03]} 3. Bb5+ {[%clk 00:05:03]}
{[%emt 00:00:02]} Nd7 {[%clk 00:05:03]} {[%emt 00:00:01]} 4. O-O {[%clk
00:05:00]} {[%emt 00:00:06]} a6 {[%clk 00:05:03]} {[%emt 00:00:03]} 5. Bxd7+
{[%clk 00:04:56]} {[%emt 00:00:06]} Bxd7 {[%clk 00:05:03]} {[%emt 00:00:03]} 6.
c3 {[%clk 00:04:56]} {[%emt 00:00:02]} Nf6 {[%clk 00:04:40]} {[%emt 00:00:27]}
7. Re1 {[%clk 00:04:56]} {[%emt 00:00:02]} e6 {[%clk 00:04:33]} {[%emt
00:00:11]} 8. d4 {[%clk 00:04:56]} {[%emt 00:00:03]} cxd4 {[%clk 00:04:33]}
{[%emt 00:00:02]} 9. cxd4 {[%clk 00:04:56]} {[%emt 00:00:01]} Be7 {[%clk
00:04:32]} {[%emt 00:00:03]} 10. Nc3 {[%clk 00:04:50]} {[%emt 00:00:09]} O-O
{[%clk 00:04:32]} {[%emt 00:00:02]} 11. Bf4 {[%clk 00:04:32]} {[%emt 00:00:20]}
Rc8 {[%clk 00:04:20]} {[%emt 00:00:15]} 12. Qd2 {[%clk 00:03:57]} {[%emt
00:00:38]} b5 {[%clk 00:04:11]} {[%emt 00:00:12]} 13. a3 {[%clk 00:03:57]}
{[%emt 00:00:02]} Bc6 {[%clk 00:04:06]} {[%emt 00:00:08]} 14. d5 {[%clk
00:03:56]} {[%emt 00:00:04]} Bd7 {[%clk 00:03:21]} {[%emt 00:00:49]} 15. dxe6
{[%clk 00:03:04]} {[%emt 00:00:54]} Bxe6 {[%clk 00:03:21]} {[%emt 00:00:01]} 16.
Nd4 {[%clk 00:02:56]} {[%emt 00:00:11]} Re8 {[%clk 00:02:30]} {[%emt 00:00:55]}
17. Nxe6 {[%clk 00:02:49]} {[%emt 00:00:10]} fxe6 {[%clk 00:02:30]} {[%emt
00:00:01]} 18. Rad1 {[%clk 00:02:46]} {[%emt 00:00:05]} e5 {[%clk 00:02:30]}
{[%emt 00:00:03]} 19. Bg5 {[%clk 00:02:44]} {[%emt 00:00:05]} Ng4 {[%clk
00:01:54]} {[%emt 00:00:38]} 20. Bxe7 {[%clk 00:02:36]} {[%emt 00:00:11]} Qxe7
{[%clk 00:01:54]} {[%emt 00:00:02]} 21. h3 {[%clk 00:02:30]} {[%emt 00:00:08]}
Nf6 {[%clk 00:01:34]} {[%emt 00:00:24]} 22. Qxd6 {[%clk 00:02:30]} {[%emt
00:00:02]} Qf7 {[%clk 00:01:34]} 23. Qxa6 {[%clk 00:02:28]} {[%emt 00:00:06]}
Qg6 {[%clk 00:01:26]} {[%emt 00:00:11]} 24. Nd5 {[%clk 00:01:58]} {[%emt
00:00:32]} Rc2 {[%clk 00:01:10]} {[%emt 00:00:19]} 25. Nxf6+ {[%clk 00:01:38]}
{[%emt 00:00:23]} gxf6 {[%clk 00:00:55]} {[%emt 00:00:19]} 26. Rd3 {[%clk
00:01:27]} {[%emt 00:00:14]} Kh8 {[%clk 00:00:45]} {[%emt 00:00:13]} 27. Rg3
{[%clk 00:01:20]} {[%emt 00:00:09]} Qh6 {[%clk 00:00:45]} {[%emt 00:00:03]} 28.
Qxb5 {[%clk 00:01:17]} {[%emt 00:00:07]} Rd8 {[%clk 00:00:32]} {[%emt
00:00:16]} 29. Qb3 {[%clk 00:00:48]} {[%emt 00:00:32]} Qd2 {[%clk 00:00:29]}
{[%emt 00:00:06]} 30. Rf1 {[%clk 00:00:48]} {[%emt 00:00:03]} Rxb2 {[%clk
00:00:27]} {[%emt 00:00:05]} 31. Qf7 {[%clk 00:00:46]} {[%emt 00:00:04]} Qh6
{[%clk 00:00:27]} 32. Kh2 {[%clk 00:00:41]} {[%emt 00:00:09]} Rbd2 {[%clk
00:00:27]} {[%emt 00:00:01]} 33. Rb1 {[%clk 00:00:37]} {[%emt 00:00:06]} R2d7
{[%clk 00:00:27]} {[%emt 00:00:04]} 34. Qxd7 {[%clk 00:00:36]} 1-0

[Event "14e Open International de Quenza"]
[Site "Quenza, France"]
[Date "????.??.??"]
[Round "3.8"]
[White "Johannsdottir, Johanna Bjorg"]
[Black "Sumets, Andrey"]
[Result "0-1"]
[TimeControl "5min+3s"]
[WhiteElo "1997"]
[BlackElo "2497"]

1. e4 {[%clk 00:05:03]} e6 {[%clk 00:05:03]} {[%emt 00:00:02]} 2. d3 {[%clk
00:05:03]} {[%emt 00:00:02]} d5 {[%clk 00:05:03]} {[%emt 00:00:01]} 3. Nd2 Nf6
4. Ngf3 {[%clk 00:05:03]} Nc6 {[%clk 00:05:03]} {[%emt 00:00:03]} 5. g3 {[%clk
00:05:03]} {[%emt 00:00:01]} Bc5 {[%clk 00:04:59]} {[%emt 00:00:07]} 6. Bg2
{[%clk 00:05:03]} {[%emt 00:00:02]} dxe4 {[%clk 00:04:59]} {[%emt 00:00:01]} 7.
dxe4 {[%clk 00:05:03]} {[%emt 00:00:01]} O-O {[%clk 00:04:55]} {[%emt
00:00:07]} 8. O-O {[%clk 00:05:03]} {[%emt 00:00:03]} e5 {[%clk 00:04:55]}
{[%emt 00:00:01]} 9. h3 {[%clk 00:05:03]} {[%emt 00:00:01]} a5 {[%clk
00:04:55]} {[%emt 00:00:02]} 10. a4 {[%clk 00:04:51]} {[%emt 00:00:15]} b6
{[%clk 00:04:55]} {[%emt 00:00:02]} 11. c3 {[%clk 00:04:51]} Qe7 {[%clk
00:04:30]} {[%emt 00:00:27]} 12. Nh4 {[%clk 00:04:21]} {[%emt 00:00:33]} Ba6
{[%clk 00:04:00]} {[%emt 00:00:34]} 13. Re1 {[%clk 00:04:21]} {[%emt 00:00:01]}
Rad8 {[%clk 00:03:52]} {[%emt 00:00:11]} 14. Nf5 {[%clk 00:04:19]} {[%emt
00:00:05]} Qe6 {[%clk 00:03:52]} {[%emt 00:00:02]} 15. g4 {[%clk 00:03:51]}
{[%emt 00:00:32]} Ne7 {[%clk 00:03:27]} {[%emt 00:00:27]} 16. Qf3 {[%clk
00:03:14]} {[%emt 00:00:41]} Rd3 {[%clk 00:03:09]} {[%emt 00:00:20]} 17. Ne3
{[%clk 00:03:14]} {[%emt 00:00:02]} Bb7 {[%clk 00:03:00]} {[%emt 00:00:12]} 18.
Bf1 {[%clk 00:02:58]} {[%emt 00:00:18]} Rdd8 {[%clk 00:02:33]} {[%emt
00:00:29]} 19. Bc4 {[%clk 00:02:36]} {[%emt 00:00:26]} Qc8 {[%clk 00:02:33]}
{[%emt 00:00:02]} 20. Nf5 {[%clk 00:02:30]} {[%emt 00:00:10]} Nxf5 {[%clk
00:02:20]} {[%emt 00:00:16]} 21. gxf5 {[%clk 00:02:30]} {[%emt 00:00:01]} Qa8
{[%clk 00:02:17]} {[%emt 00:00:06]} 22. Kh2 {[%clk 00:02:18]} {[%emt 00:00:14]}
Rxd2 {[%clk 00:02:04]} {[%emt 00:00:17]} 23. Bxd2 {[%clk 00:02:16]} {[%emt
00:00:05]} Nxe4 {[%clk 00:02:04]} {[%emt 00:00:02]} 24. Rxe4 {[%clk 00:01:26]}
{[%emt 00:00:53]} Bxe4 {[%clk 00:02:04]} {[%emt 00:00:02]} 25. Qg3 {[%clk
00:01:25]} {[%emt 00:00:03]} Bxf5 {[%clk 00:01:59]} {[%emt 00:00:10]} 26. Rg1
{[%clk 00:01:25]} {[%emt 00:00:03]} g6 {[%clk 00:01:52]} {[%emt 00:00:10]} 27.
Qh4 {[%clk 00:01:01]} {[%emt 00:00:27]} Qf3 {[%clk 00:01:37]} {[%emt 00:00:16]}
28. Rg2 {[%clk 00:00:40]} {[%emt 00:00:26]} Be4 {[%clk 00:01:31]} {[%emt
00:00:09]} 29. Bf1 {[%clk 00:00:38]} {[%emt 00:00:06]} Qf5 {[%clk 00:01:09]}
{[%emt 00:00:24]} 30. Rg5 {[%clk 00:00:28]} {[%emt 00:00:14]} Qxf2+ {[%clk
00:00:58]} {[%emt 00:00:14]} 31. Qxf2 {[%clk 00:00:28]} {[%emt 00:00:01]} Bxf2
{[%clk 00:00:58]} {[%emt 00:00:01]} 32. Rxe5 {[%clk 00:00:28]} {[%emt
00:00:01]} Bf5 {[%clk 00:00:56]} {[%emt 00:00:05]} 33. Bc4 {[%clk 00:00:25]}
{[%emt 00:00:06]} Bc5 {[%clk 00:00:55]} {[%emt 00:00:04]} 34. Re2 {[%clk
00:00:20]} {[%emt 00:00:08]} Kg7 {[%clk 00:00:47]} {[%emt 00:00:11]} 35. Kg2
{[%clk 00:00:16]} {[%emt 00:00:08]} Rd8 {[%clk 00:00:45]} {[%emt 00:00:04]} 36.
Bg5 {[%clk 00:00:16]} {[%emt 00:00:03]} f6 {[%clk 00:00:45]} {[%emt 00:00:02]}
37. Bh4 {[%clk 00:00:14]} {[%emt 00:00:05]} Bd3 {[%clk 00:00:29]} {[%emt
00:00:18]} 38. Bxd3 {[%clk 00:00:14]} {[%emt 00:00:02]} Rxd3 {[%clk 00:00:29]}
{[%emt 00:00:01]} 39. Bg3 {[%clk 00:00:14]} {[%emt 00:00:02]} Bd6 {[%clk
00:00:29]} {[%emt 00:00:03]} 40. Bf2 {[%clk 00:00:11]} {[%emt 00:00:06]} g5
{[%clk 00:00:29]} {[%emt 00:00:03]} 41. Bd4 {[%clk 00:00:11]} {[%emt 00:00:01]}
Rg3+ {[%clk 00:00:24]} {[%emt 00:00:08]} 42. Kf2 {[%clk 00:00:11]} {[%emt
00:00:03]} Rxh3 {[%clk 00:00:24]} {[%emt 00:00:01]} 43. Re6 {[%clk 00:00:10]}
{[%emt 00:00:04]} Rh4 {[%clk 00:00:18]} {[%emt 00:00:08]} 44. Bxf6+ {[%clk
00:00:05]} {[%emt 00:00:08]} Kf7 {[%clk 00:00:18]} 45. Bxg5 {[%clk 00:00:05]}
{[%emt 00:00:01]} Rh2+ {[%clk 00:00:18]} {[%emt 00:00:01]} 0-1

[Event "14e Open International de Quenza"]
[Site "Quenza, France"]
[Date "????.??.??"]
[Round "3.9"]
[White "Toktomushev, Teimur"]
[Black "Guillemart, Serge"]
[Result "1-0"]
[TimeControl "5min+3s"]
[WhiteElo "2401"]
[BlackElo "2135"]

1. d4 {[%clk 00:05:03]} {[%emt 00:00:01]} d5 {[%clk 00:05:03]} 2. c4 {[%clk
00:05:03]} {[%emt 00:00:02]} Nc6 {[%clk 00:05:03]} 3. Nf3 {[%clk 00:04:53]}
{[%emt 00:00:13]} Bg4 {[%clk 00:05:03]} {[%emt 00:00:01]} 4. cxd5 {[%clk
00:04:13]} {[%emt 00:00:43]} Bxf3 {[%clk 00:05:03]} {[%emt 00:00:02]} 5. gxf3
{[%clk 00:04:13]} {[%emt 00:00:02]} Qxd5 {[%clk 00:05:03]} {[%emt 00:00:02]} 6.
e3 {[%clk 00:04:13]} {[%emt 00:00:01]} e5 {[%clk 00:05:03]} {[%emt 00:00:01]} 7.
Nc3 {[%clk 00:04:13]} {[%emt 00:00:03]} Bb4 {[%clk 00:05:03]} {[%emt 00:00:01]}
8. Bd2 {[%clk 00:04:13]} {[%emt 00:00:02]} Bxc3 {[%clk 00:05:03]} {[%emt
00:00:01]} 9. bxc3 {[%clk 00:04:13]} {[%emt 00:00:01]} exd4 {[%clk 00:05:02]}
{[%emt 00:00:05]} 10. cxd4 {[%clk 00:04:07]} {[%emt 00:00:09]} Nf6 {[%clk
00:05:01]} {[%emt 00:00:03]} 11. Be2 {[%clk 00:03:07]} {[%emt 00:01:03]} O-O
{[%clk 00:04:59]} {[%emt 00:00:05]} 12. Qb3 {[%clk 00:03:07]} {[%emt 00:00:02]}
Qxb3 {[%clk 00:04:54]} {[%emt 00:00:08]} 13. axb3 {[%clk 00:03:07]} {[%emt
00:00:01]} Rfe8 {[%clk 00:04:45]} {[%emt 00:00:12]} 14. Kf1 {[%clk 00:02:32]}
{[%emt 00:00:38]} a6 {[%clk 00:04:45]} {[%emt 00:00:02]} 15. f4 {[%clk
00:01:48]} {[%emt 00:00:47]} Rad8 {[%clk 00:04:42]} {[%emt 00:00:06]} 16. Bf3
{[%clk 00:01:43]} {[%emt 00:00:07]} Ne4 {[%clk 00:04:40]} {[%emt 00:00:05]} 17.
Be1 {[%clk 00:01:38]} {[%emt 00:00:09]} f5 {[%clk 00:04:40]} {[%emt 00:00:01]}
18. Be2 {[%clk 00:01:24]} {[%emt 00:00:16]} Nd6 {[%clk 00:04:34]} {[%emt
00:00:08]} 19. Rc1 {[%clk 00:01:22]} {[%emt 00:00:06]} Rb8 {[%clk 00:04:04]}
{[%emt 00:00:32]} 20. Bd3 {[%clk 00:01:19]} {[%emt 00:00:06]} g6 {[%clk
00:03:59]} {[%emt 00:00:08]} 21. Kg2 {[%clk 00:01:19]} {[%emt 00:00:03]} Re7
{[%clk 00:03:52]} {[%emt 00:00:10]} 22. Kf3 {[%clk 00:01:17]} {[%emt 00:00:04]}
Kf7 {[%clk 00:03:45]} {[%emt 00:00:09]} 23. Bd2 {[%clk 00:00:56]} {[%emt
00:00:24]} Ne4 {[%clk 00:03:45]} {[%emt 00:00:01]} 24. Rc2 {[%clk 00:00:54]}
{[%emt 00:00:06]} Nxd2+ {[%clk 00:03:02]} {[%emt 00:00:46]} 25. Rxd2 {[%clk
00:00:54]} {[%emt 00:00:01]} Nb4 {[%clk 00:03:02]} {[%emt 00:00:01]} 26. Be2
{[%clk 00:00:47]} {[%emt 00:00:09]} c6 {[%clk 00:03:01]} {[%emt 00:00:06]} 27.
Rc1 {[%clk 00:00:47]} {[%emt 00:00:02]} Nd5 {[%clk 00:03:01]} {[%emt 00:00:02]}
28. Rc5 {[%clk 00:00:47]} {[%emt 00:00:01]} Rd8 {[%clk 00:02:57]} {[%emt
00:00:07]} 29. Bc4 {[%clk 00:00:47]} {[%emt 00:00:02]} Ke6 {[%clk 00:02:52]}
{[%emt 00:00:08]} 30. Rc2 {[%clk 00:00:47]} {[%emt 00:00:02]} Kd6 {[%clk
00:02:24]} {[%emt 00:00:32]} 31. Bxd5 {[%clk 00:00:47]} {[%emt 00:00:02]} cxd5
{[%clk 00:02:24]} {[%emt 00:00:02]} 32. b4 {[%clk 00:00:47]} {[%emt 00:00:01]}
Rdd7 {[%clk 00:02:19]} {[%emt 00:00:08]} 33. b5 {[%clk 00:00:47]} {[%emt
00:00:01]} Rc7 {[%clk 00:02:10]} {[%emt 00:00:11]} 34. b6 {[%clk 00:00:28]}
{[%emt 00:00:22]} Rxc5 {[%clk 00:02:04]} {[%emt 00:00:09]} 35. Rxc5 {[%clk
00:00:28]} a5 {[%clk 00:01:59]} {[%emt 00:00:08]} 36. Rxa5 {[%clk 00:00:28]}
{[%emt 00:00:02]} Kc6 {[%clk 00:01:59]} 37. Rc5+ {[%clk 00:00:28]} {[%emt
00:00:02]} Kxb6 {[%clk 00:01:59]} {[%emt 00:00:02]} 38. Rxd5 {[%clk 00:00:28]}
Kc6 {[%clk 00:01:57]} {[%emt 00:00:05]} 39. Rc5+ {[%clk 00:00:28]} Kd6 {[%clk
00:01:57]} {[%emt 00:00:01]} 40. Ke2 {[%clk 00:00:28]} {[%emt 00:00:02]} b6
{[%clk 00:01:57]} 41. Rc8 {[%clk 00:00:28]} {[%emt 00:00:01]} Ra7 {[%clk
00:01:57]} {[%emt 00:00:03]} 42. Kd3 {[%clk 00:00:27]} {[%emt 00:00:04]} Ra2
{[%clk 00:01:54]} {[%emt 00:00:07]} 43. Rc2 {[%clk 00:00:27]} {[%emt 00:00:01]}
Ra1 {[%clk 00:01:51]} {[%emt 00:00:06]} 44. Kc4 {[%clk 00:00:15]} {[%emt
00:00:15]} Rh1 {[%clk 00:01:50]} {[%emt 00:00:03]} 45. f3 {[%clk 00:00:14]}
{[%emt 00:00:04]} Rf1 {[%clk 00:01:50]} 46. e4 {[%clk 00:00:14]} {[%emt
00:00:01]} fxe4 {[%clk 00:01:45]} {[%emt 00:00:09]} 47. fxe4 {[%clk 00:00:14]}
Rxf4 48. e5+ Ke6 {[%clk 00:01:45]} 49. Rb2 {[%clk 00:00:14]} h5 {[%clk
00:01:35]} {[%emt 00:00:12]} 50. Rxb6+ {[%clk 00:00:14]} {[%emt 00:00:01]} Ke7
{[%clk 00:01:35]} 51. Kd5 {[%clk 00:00:14]} {[%emt 00:00:02]} 1-0

[Event "14e Open International de Quenza"]
[Site "Quenza, France"]
[Date "????.??.??"]
[Round "3.10"]
[White "Cristofari, Antoine"]
[Black "Ratier-Fontana, Matteo"]
[Result "0-1"]
[TimeControl "5min+3s"]
[WhiteElo "2052"]
[BlackElo "2275"]

1. e4 {[%clk 00:05:03]} c6 {[%clk 00:05:03]} {[%emt 00:00:02]} 2. d4 {[%clk
00:05:00]} {[%emt 00:00:06]} d5 {[%clk 00:05:03]} {[%emt 00:00:01]} 3. exd5
{[%clk 00:05:00]} {[%emt 00:00:01]} cxd5 {[%clk 00:05:03]} {[%emt 00:00:01]} 4.
Bf4 {[%clk 00:05:00]} {[%emt 00:00:03]} Nc6 {[%clk 00:05:03]} {[%emt 00:00:02]}
5. Bd3 {[%clk 00:04:58]} {[%emt 00:00:05]} e6 {[%clk 00:04:44]} {[%emt
00:00:23]} 6. c3 {[%clk 00:04:54]} {[%emt 00:00:06]} Bd6 {[%clk 00:04:44]}
{[%emt 00:00:02]} 7. Bxd6 {[%clk 00:04:53]} {[%emt 00:00:04]} Qxd6 {[%clk
00:04:44]} {[%emt 00:00:01]} 8. Qg4 {[%clk 00:04:52]} {[%emt 00:00:04]} g6
{[%clk 00:04:30]} {[%emt 00:00:18]} 9. Nf3 {[%clk 00:04:26]} {[%emt 00:00:29]}
e5 {[%clk 00:03:55]} {[%emt 00:00:38]} 10. Qg3 {[%clk 00:04:26]} {[%emt
00:00:03]} f6 {[%clk 00:03:52]} {[%emt 00:00:06]} 11. O-O {[%clk 00:04:05]}
{[%emt 00:00:22]} Kd7 {[%clk 00:03:32]} {[%emt 00:00:25]} 12. dxe5 {[%clk
00:04:02]} {[%emt 00:00:05]} fxe5 {[%clk 00:03:32]} {[%emt 00:00:03]} 13. Bb5
{[%clk 00:03:52]} {[%emt 00:00:14]} Kc7 {[%clk 00:02:37]} {[%emt 00:00:58]} 14.
Bxc6 {[%clk 00:03:45]} {[%emt 00:00:10]} bxc6 {[%clk 00:02:37]} {[%emt
00:00:01]} 15. Qxe5 {[%clk 00:03:43]} {[%emt 00:00:05]} Qxe5 {[%clk 00:02:37]}
{[%emt 00:00:04]} 16. Nxe5 {[%clk 00:03:42]} {[%emt 00:00:03]} Nf6 {[%clk
00:02:37]} 17. b3 {[%clk 00:03:03]} {[%emt 00:00:43]} Re8 {[%clk 00:02:36]}
{[%emt 00:00:03]} 18. f4 {[%clk 00:03:03]} {[%emt 00:00:02]} Ne4 {[%clk
00:02:22]} {[%emt 00:00:18]} 19. Na3 {[%clk 00:03:02]} {[%emt 00:00:04]} Nxc3
{[%clk 00:02:14]} {[%emt 00:00:11]} 20. Rf2 {[%clk 00:02:44]} {[%emt 00:00:19]}
Bb7 {[%clk 00:02:14]} {[%emt 00:00:05]} 21. Rc1 {[%clk 00:02:44]} {[%emt
00:00:02]} d4 {[%clk 00:02:01]} {[%emt 00:00:16]} 22. Nb1 {[%clk 00:01:52]}
{[%emt 00:00:55]} Nd5 {[%clk 00:01:53]} {[%emt 00:00:11]} 23. g3 {[%clk
00:01:51]} {[%emt 00:00:03]} Rad8 {[%clk 00:01:52]} {[%emt 00:00:05]} 24. Na3
{[%clk 00:01:49]} {[%emt 00:00:05]} Ne3 {[%clk 00:01:48]} {[%emt 00:00:07]} 25.
Nb5+ {[%clk 00:01:38]} {[%emt 00:00:15]} Kb6 {[%clk 00:01:48]} {[%emt
00:00:02]} 26. Na3 {[%clk 00:01:34]} {[%emt 00:00:07]} c5 {[%clk 00:01:48]}
{[%emt 00:00:03]} 27. Nd3 {[%clk 00:00:55]} {[%emt 00:00:41]} Rc8 {[%clk
00:01:44]} {[%emt 00:00:08]} 28. Nc4+ {[%clk 00:00:35]} {[%emt 00:00:23]} Nxc4
{[%clk 00:01:17]} {[%emt 00:00:30]} 29. bxc4 {[%clk 00:00:31]} {[%emt
00:00:07]} Ba6 {[%clk 00:01:00]} {[%emt 00:00:20]} 30. Rb2+ {[%clk 00:00:23]}
{[%emt 00:00:10]} Kc6 {[%clk 00:01:00]} {[%emt 00:00:01]} 31. Ne5+ {[%clk
00:00:23]} {[%emt 00:00:03]} Kc7 {[%clk 00:01:00]} {[%emt 00:00:01]} 32. Nd3
{[%clk 00:00:21]} {[%emt 00:00:04]} Kd6 {[%clk 00:01:00]} {[%emt 00:00:02]} 33.
Ne5 {[%clk 00:00:18]} {[%emt 00:00:06]} Rb8 {[%clk 00:00:46]} {[%emt 00:00:18]}
34. Rcb1 {[%clk 00:00:17]} {[%emt 00:00:04]} Rxb2 {[%clk 00:00:46]} {[%emt
00:00:03]} 35. Rxb2 {[%clk 00:00:17]} g5 {[%clk 00:00:45]} {[%emt 00:00:04]} 36.
Kf2 {[%clk 00:00:17]} {[%emt 00:00:02]} gxf4 {[%clk 00:00:45]} {[%emt
00:00:02]} 37. gxf4 {[%clk 00:00:17]} {[%emt 00:00:01]} Rf8 {[%clk 00:00:45]}
{[%emt 00:00:02]} 38. Kg3 {[%clk 00:00:16]} {[%emt 00:00:03]} Rg8+ {[%clk
00:00:44]} {[%emt 00:00:05]} 39. Kf2 {[%clk 00:00:16]} {[%emt 00:00:04]} Ke6
{[%clk 00:00:38]} {[%emt 00:00:09]} 40. Nd3 {[%clk 00:00:06]} {[%emt 00:00:13]}
Bxc4 {[%clk 00:00:38]} {[%emt 00:00:02]} 41. Nxc5+ {[%clk 00:00:06]} {[%emt
00:00:01]} Kf5 {[%clk 00:00:38]} {[%emt 00:00:01]} 42. Rd2 {[%clk 00:00:06]}
{[%emt 00:00:03]} Rd8 {[%clk 00:00:38]} {[%emt 00:00:01]} 43. Nb7 {[%clk
00:00:04]} {[%emt 00:00:05]} Rd5 {[%clk 00:00:38]} 44. Rc2 {[%clk 00:00:04]}
{[%emt 00:00:02]} d3 {[%clk 00:00:38]} {[%emt 00:00:03]} 45. Rd2 {[%clk
00:00:04]} {[%emt 00:00:01]} Bxa2 {[%clk 00:00:38]} {[%emt 00:00:01]} 0-1

[Event "14e Open International de Quenza"]
[Site "Quenza, France"]
[Date "????.??.??"]
[Round "3.11"]
[White "Bernardi, Alexandre"]
[Black "Mullon, Jean-Baptiste"]
[Result "1/2-1/2"]
[TimeControl "5min+3s"]
[WhiteElo "1897"]
[BlackElo "2277"]

1. e4 {[%clk 00:05:03]} {[%emt 00:00:01]} c5 {[%clk 00:05:03]} {[%emt
00:00:01]} 2. Nf3 {[%clk 00:05:03]} {[%emt 00:00:01]} e6 {[%clk 00:05:03]}
{[%emt 00:00:02]} 3. g3 {[%clk 00:05:03]} {[%emt 00:00:01]} Nc6 {[%clk
00:05:03]} {[%emt 00:00:03]} 4. Bg2 {[%clk 00:05:03]} {[%emt 00:00:01]} Nf6
{[%clk 00:05:03]} {[%emt 00:00:03]} 5. Nc3 {[%clk 00:05:03]} {[%emt 00:00:04]}
d6 {[%clk 00:04:58]} {[%emt 00:00:08]} 6. O-O {[%clk 00:05:03]} {[%emt
00:00:03]} Be7 {[%clk 00:04:58]} {[%emt 00:00:04]} 7. d4 {[%clk 00:05:03]}
{[%emt 00:00:02]} cxd4 {[%clk 00:04:58]} {[%emt 00:00:02]} 8. Nxd4 {[%clk
00:05:03]} {[%emt 00:00:01]} Bd7 {[%clk 00:04:58]} {[%emt 00:00:01]} 9. Re1
{[%clk 00:04:55]} {[%emt 00:00:10]} O-O {[%clk 00:04:56]} {[%emt 00:00:05]} 10.
Ndb5 {[%clk 00:04:45]} {[%emt 00:00:13]} Qb8 {[%clk 00:04:56]} {[%emt
00:00:02]} 11. Bf4 {[%clk 00:04:43]} {[%emt 00:00:05]} Ne5 {[%clk 00:04:56]}
{[%emt 00:00:01]} 12. Bg5 {[%clk 00:04:30]} {[%emt 00:00:16]} a6 {[%clk
00:04:36]} {[%emt 00:00:23]} 13. Bxf6 {[%clk 00:03:59]} {[%emt 00:00:33]} gxf6
{[%clk 00:04:36]} {[%emt 00:00:01]} 14. Nd4 {[%clk 00:03:52]} {[%emt 00:00:10]}
Qc7 {[%clk 00:04:32]} {[%emt 00:00:08]} 15. Qh5 {[%clk 00:03:15]} {[%emt
00:00:39]} Ng6 {[%clk 00:02:27]} {[%emt 00:02:07]} 16. Re3 {[%clk 00:02:57]}
{[%emt 00:00:21]} Qc5 {[%clk 00:02:27]} {[%emt 00:00:04]} 17. Qd1 {[%clk
00:01:42]} {[%emt 00:01:18]} Rac8 {[%clk 00:02:27]} {[%emt 00:00:02]} 18. Nb3
{[%clk 00:01:42]} {[%emt 00:00:02]} Qc7 {[%clk 00:02:24]} {[%emt 00:00:06]} 19.
Qh5 {[%clk 00:01:40]} {[%emt 00:00:05]} Rfe8 {[%clk 00:01:58]} {[%emt
00:00:29]} 20. Rd1 {[%clk 00:01:15]} {[%emt 00:00:28]} b5 {[%clk 00:01:58]}
{[%emt 00:00:02]} 21. Rd2 {[%clk 00:00:35]} {[%emt 00:00:42]} b4 {[%clk
00:01:49]} {[%emt 00:00:13]} 22. Ne2 {[%clk 00:00:35]} {[%emt 00:00:02]} a5
{[%clk 00:01:49]} 23. g4 {[%clk 00:00:28]} {[%emt 00:00:09]} Bf8 {[%clk
00:01:43]} {[%emt 00:00:09]} 24. Rh3 {[%clk 00:00:23]} {[%emt 00:00:08]} h6
{[%clk 00:01:43]} {[%emt 00:00:01]} 25. f4 {[%clk 00:00:14]} {[%emt 00:00:12]}
a4 {[%clk 00:01:37]} {[%emt 00:00:09]} 26. Nbd4 {[%clk 00:00:14]} {[%emt
00:00:01]} d5 {[%clk 00:01:23]} {[%emt 00:00:17]} 27. Nf5 {[%clk 00:00:07]}
{[%emt 00:00:09]} exf5 {[%clk 00:01:16]} {[%emt 00:00:11]} 28. gxf5 {[%clk
00:00:07]} Nxf4 {[%clk 00:00:27]} {[%emt 00:00:51]} 29. Nxf4 {[%clk 00:00:04]}
{[%emt 00:00:06]} Qxf4 {[%clk 00:00:27]} {[%emt 00:00:01]} 30. Rg3+ {[%clk
00:00:04]} Bg7 {[%clk 00:00:25]} {[%emt 00:00:05]} 31. Rf2 {[%clk 00:00:04]}
Qc1+ {[%clk 00:00:19]} {[%emt 00:00:08]} 32. Rf1 {[%clk 00:00:04]} {[%emt
00:00:02]} Qd2 {[%clk 00:00:19]} {[%emt 00:00:03]} 33. Rf2 {[%clk 00:00:04]}
{[%emt 00:00:02]} Qc1+ {[%clk 00:00:14]} {[%emt 00:00:09]} 34. Rf1 {[%clk
00:00:04]} {[%emt 00:00:01]} Qd2 {[%clk 00:00:09]} {[%emt 00:00:08]} 35. Rf2
{[%clk 00:00:04]} Qc1+ {[%clk 00:00:06]} {[%emt 00:00:06]} 36. Rf1 {[%clk
00:00:04]} {[%emt 00:00:01]} 1/2-1/2